[Event "FRA-ch 91st"]
[Site "Agen"]
[Date "2016.08.19"]
[Round "7"]
[White "Edouard, Romain"]
[Black "Gharamian, Tigran"]
[Result "1-0"]
[ECO "C65"]
[WhiteElo "2647"]
[BlackElo "2637"]
[Annotator "Besenthal,K/Primel,D"]
[PlyCount "119"]
[EventDate "2016.08.13"]
[EventType "tourn"]
[EventRounds "9"]
[EventCountry "FRA"]
[EventCategory "14"]
[SourceTitle "CBM 174"]
[Source "ChessBase"]
[SourceDate "2016.09.13"]
[SourceVersion "1"]
[SourceVersionDate "2016.09.13"]
[SourceQuality "1"]
[TimeControl "40/5400+30:1800+30"]

1. e4 {[%emt 0:10:21]} e5 {[%emt 0:00:00]} 2. Nf3 {[%emt 0:00:03]} Nc6 {
[%emt 0:00:10]} 3. Bb5 {[%emt 0:00:23]} Nf6 {[%emt 0:00:19]} 4. d3 {[%emt 0:00:
07]} Bc5 {[%emt 0:00:07]} 5. O-O {[%emt 0:05:28]} Nd4 {[%emt 0:01:02]} 6. Nxd4
{[%emt 0:00:06]} Bxd4 {[%emt 0:00:06]} 7. c3 {[%emt 0:00:08]} (7. Nd2 a6 8. Ba4
b5 9. Bb3 d6 10. a4 Bb6 11. axb5 Bg4 12. Nf3 axb5 13. Rxa8 Qxa8 14. h3 Be6 15.
Bxe6 fxe6 16. Nh2 O-O 17. Ng4 Qe8 18. Be3 Bxe3 19. Nxe3 Qc6 20. Qd2 d5 21. f3
d4 22. Ng4 Nxg4 23. hxg4 h6 24. g5 hxg5 25. Qxg5 Qxc2 26. Qxe5 Qxd3 27. Qxe6+
Kh7 28. Qh3+ Kg8 29. Qe6+ Kh7 30. Qh3+ Kg8 {1/2-1/2 (30) Anand,V (2762)
-Nakamura,H (2790) Moscow 2016}) 7... Bb6 {[%emt 0:00:10]} 8. Ba4 {[%emt 0:07:
59]} O-O {[%emt 0:00:59]} 9. Bg5 {[%emt 0:02:06]} h6 {[%emt 0:02:52]} 10. Bh4 {
[%emt 0:00:05]} d6 {[%emt 0:03:43]} 11. Kh1 {[%emt 0:01:20]} g5 {[%emt 0:26:29]
} 12. Bg3 {[%emt 0:00:05]} Bg4 $146 {[%emt 0:00:31]} (12... h5 13. f3 h4 14.
Bf2 Bxf2 15. Rxf2 Nh5 16. Nd2 Qf6 17. Kg1 Be6 18. Nf1 d5 19. exd5 Bxd5 20. Ne3
Rad8 21. Nxd5 Rxd5 22. Qb3 Rxd3 23. Qxb7 Qb6 24. Qxb6 axb6 25. Bb5 Rd6 26. a4
Rfd8 27. b4 Nf4 28. a5 Nd5 29. Rc2 bxa5 30. bxa5 c6 31. Be2 Nc7 32. a6 Nb5 33.
Kf2 Ra8 34. Bc4 Kg7 35. Ra5 f5 36. Ke3 Rd7 37. Rd2 Rc7 38. Rd3 Kf8 39. g3 hxg3
40. hxg3 Ke7 41. Rd2 Rca7 42. Bxb5 {Spraggett,K (2588)-Pap,M (2511) France
2011 1/2-1/2}) 13. f3 {[%emt 0:01:34]} Be6 {[%emt 0:01:04]} 14. d4 {[%emt 0:08:
06]} Nh5 {[%emt 0:01:07]} 15. Bf2 {[%emt 0:00:04]} Nf4 {[%emt 0:04:59]} 16. Na3
{[%emt 0:03:30]} Qf6 {[%emt 0:03:15]} 17. Bb3 {[%emt 0:10:49]} Rad8 {[%emt 0:
03:17]} 18. Bxe6 {[%emt 0:12:20]} Qxe6 {[%emt 0:07:23]} 19. d5 {[%emt 0:02:53]}
Qg6 {[%emt 0:18:14]} 20. Bxb6 {[%emt 0:00:09]} axb6 {[%emt 0:00:41]} 21. g3 {
[%emt 0:00:05]} Nh5 {[%emt 0:00:11]} 22. Nc2 {[%emt 0:00:36]} Ng7 {[%emt 0:00:
28]} 23. g4 {[%emt 0:00:58]} h5 {[%emt 0:00:07]} 24. Qe2 {[%emt 0:06:57]} (24.
h3) 24... Ra8 {[%emt 0:00:49]} 25. Rg1 {[%emt 0:02:31]} h4 {[%emt 0:01:54]} 26.
Ne3 {[%emt 0:00:41]} f6 {[%emt 0:01:03]} 27. a4 {[%emt 0:00:58]} Ra6 {[%emt 0:
02:32]} 28. Ra3 {[%emt 0:01:15]} Rfa8 {[%emt 0:00:26]} 29. Rga1 {[%emt 0:00:03]
} Qe8 {[%emt 0:00:32]} 30. Qc4 {[%emt 0:03:31]} Qd7 {[%emt 0:00:07]} 31. Qb4 {
[%emt 0:00:29]} Qc8 {[%emt 0:02:24]} 32. Nc4 {[%emt 0:06:11]} R8a7 {[%emt 0:02:
16]} 33. Kg1 {[%emt 0:01:35]} Ne8 {[%emt 0:00:49]} 34. Qb5 {[%emt 0:04:39]} Kf8
{[%emt 0:00:57]} 35. Kf2 {[%emt 0:00:41]} c6 {[%emt 0:06:07]} 36. Qb4 {[%emt 0:
00:07]} c5 {[%emt 0:01:20]} 37. Qb3 {[%emt 0:01:17]} Qd8 {[%emt 0:00:14]} 38.
Ke2 {[%emt 0:04:43]} Qc7 {[%emt 0:00:48]} 39. Qc2 {[%emt 0:03:02]} Ra8 {
[%emt 0:03:47]} 40. Kd3 {[%emt 0:00:59]} R8a7 {[%emt 0:04:36]} 41. Rb3 {
[%emt 0:12:21]} Rxa4 {[%emt 0:14:32]} 42. Rxa4 {[%emt 0:00:04]} Rxa4 {[%emt 0:
00:05]} 43. Rxb6 $1 {[%emt 0:06:25]} Rxc4 {[%emt 0:09:59]} 44. Rb5 {[%emt 0:00:
16]} b6 {[%emt 0:00:07]} 45. Qb3 {[%emt 0:05:19]} Qa7 {[%emt 0:01:14]} 46. Qxc4
{[%emt 0:00:55]} Nc7 {[%emt 0:01:28]} 47. Rb3 {[%emt 0:00:07]} Qa1 {[%emt 0:00:
11]} 48. Kc2 {[%emt 0:00:49]} Qa2 {[%emt 0:00:05]} (48... b5 $5) 49. Qd3 {
[%emt 0:01:45]} Qa4 {[%emt 0:01:40]} 50. c4 {[%emt 0:00:04]} b5 {[%emt 0:01:19]
} 51. Kb1 {[%emt 0:00:02]} b4 {[%emt 0:00:29]} 52. Qc2 {[%emt 0:01:05]} Ke7 {
[%emt 0:01:35]} 53. Rd3 {[%emt 0:00:06]} Qxc2+ {[%emt 0:00:29]} 54. Kxc2 {
[%emt 0:00:01] Ist die Schwarze Stellung eine uneinnehmbare Festung?} Kd7 {
[%emt 0:00:14]} 55. Rd1 {[%emt 0:01:10]} Kc8 {[%emt 0:00:09]} 56. Ra1 {[%emt 0:
00:03]} Kb7 {[%emt 0:00:22]} 57. Kd3 {[%emt 0:01:43]} Na8 {[%emt 0:05:43]} 58.
f4 $1 {[%emt 0:02:42] Nein!} exf4 {[%emt 0:00:16]} ({Oder} 58... gxf4 59. Rf1
Nb6 60. Rf3 Na4 61. Kc2 Kc8 62. Rh3 Kd8 63. Rxh4 {usw.}) 59. e5 {[%emt 0:00:02]
} dxe5 {[%emt 0:00:33]} ({Oder} 59... fxe5 60. Ke4) 60. Ra5 {[%emt 0:01:19]}
1-0

[Event "Khanty-Mansiysk FIDE GP (Women)"]
[Site "Khanty-Mansiysk"]
[Date "2014.04.19"]
[Round "9"]
[White "Kosintseva, Tatiana"]
[Black "Zhao, Xue"]
[Result "1/2-1/2"]
[ECO "C65"]
[WhiteElo "2496"]
[BlackElo "2552"]
[Annotator "ChessBase Website"]
[PlyCount "149"]
[EventDate "2014.04.09"]
[EventType "tourn"]
[EventRounds "11"]
[EventCountry "RUS"]
[EventCategory "10"]
[SourceTitle "CBM 160"]
[Source "ChessBase"]
[SourceDate "2014.05.15"]
[SourceVersion "1"]
[SourceVersionDate "2014.05.15"]
[SourceQuality "1"]
[TimeControl "40/5400+30:1800+30"]
[WhiteClock "1:30:00"]
[BlackClock "1:30:00"]

1. e4 {[%emt 0:00:00]} e5 {[%emt 0:00:00]} 2. Nf3 {[%emt 0:00:00]} Nc6 {
[%emt 0:00:00]} 3. Bb5 {[%emt 0:00:00]} Nf6 {[%emt 0:00:01]} 4. d3 {[%emt 0:00:
00]} Bc5 {[%emt 0:00:20]} 5. c3 {[%emt 0:00:01]} O-O {[%emt 0:01:17]} 6. O-O {
[%emt 0:00:12]} d6 {[%emt 0:00:19]} 7. h3 {[%emt 0:00:36]} Ne7 {[%emt 0:02:02]}
8. d4 {[%emt 0:05:30]} Bb6 {[%emt 0:01:06]} 9. Nbd2 {[%emt 0:01:59]} (9. Re1 d5
10. Nxe5 Nxe4 11. Nd2 Nd6 12. Bf1 c6 13. b3 Re8 14. a4 Ng6 15. Nxg6 Rxe1 16.
Qxe1 hxg6 17. Ba3 a5 18. Qe3 Be6 19. Re1 Bc7 20. Bd3 Bf5 21. Nf3 Bxd3 22. Qxd3
Ne4 23. Nd2 Nxd2 24. Qxd2 Bd6 25. Bxd6 Qxd6 26. g3 Qd7 27. Kg2 Re8 28. Re3 Kf8
29. h4 Qf5 30. Rxe8+ Kxe8 31. Qe3+ Kd7 32. Qf3 Qxf3+ 33. Kxf3 Ke6 34. Kg4 b5
35. Kf4 Kd6 36. g4 Ke6 37. Kg5 Kd6 38. h5 gxh5 {Karjakin,S (2756)-Le Quang,L 
(2703) Beijing 2013 1-0 (63)}) 9... c6 {[%emt 0:06:58]} 10. Ba4 {[%emt 0:02:50]
} Ng6 {[%emt 0:02:32]} 11. Re1 {[%emt 0:01:42]} Be6 {[%emt 0:20:02]} 12. Bc2 {
[%emt 0:03:59]} Qc7 {[%emt 0:09:27]} 13. Nf1 {[%emt 0:02:38]} h6 {[%emt 0:03:
42]} 14. Ng3 {[%emt 0:00:41]} Rad8 {[%emt 0:00:06]} 15. Be3 {[%emt 0:11:15]}
Rfe8 {[%emt 0:04:10]} 16. Qc1 $146 {[%emt 0:04:09]} (16. Qd2 d5 17. exd5 Bxd5
18. Bxg6 Bxf3 19. Bc2 exd4 20. cxd4 Bh5 21. Nxh5 Nxh5 22. Bxh6 gxh6 23. Qxh6
Bxd4 24. Bh7+ Kh8 25. Bg6+ Kg8 26. Bh7+ Kh8 27. Qxh5 Qf4 28. Be4+ Kg7 29. Qh7+
Kf8 30. Bf3 {1/2-1/2 (30) Balogh,C (2562)-Gyimesi,Z (2610) Hungary 2008}) 16...
Kh7 {[%emt 0:13:16]} 17. a4 {[%emt 0:09:32]} a5 {[%emt 0:01:46]} 18. Nf5 {
[%emt 0:06:12][%csl Gf5]} Ng8 {[%emt 0:00:21]} 19. h4 {[%emt 0:05:28]} f6 {
[%emt 0:00:38]} 20. h5 $36 {[%emt 0:07:14][%csl Gh5] A very entertaining game.
The opposite colored bishops allowed Kosintseva to launch an attack on the
light-squares that cost Zhao Xue an exchange, but she obtained a pawn and some
interesting compensation for it. Eventually and endgame was reached where
White had winning chances, but nothing more. She tried for many, many moves
but was unable to bring down the Chinese wall.} N6e7 {[%emt 0:01:51]} 21. N3h4
{[%emt 0:01:42]} Nxf5 {[%emt 0:02:39]} 22. exf5 {[%emt 0:00:07]} Bf7 {[%emt 0:
00:16]} 23. Ng6 {[%emt 0:02:12]} exd4 {[%emt 0:02:05]} 24. cxd4 {[%emt 0:01:28]
} Ne7 {[%emt 0:00:16]} 25. Nf4 {[%emt 0:06:52]} Qd7 {[%emt 0:00:16]} 26. Qd1 {
[%emt 0:04:59]} Kh8 {[%emt 0:01:05]} 27. Ne6 {[%emt 0:02:45]} Bxe6 {[%emt 0:08:
51]} 28. fxe6 {[%emt 0:00:09]} Qxe6 {[%emt 0:00:12]} 29. Bxh6 {[%emt 0:00:46]}
Qc4 {[%emt 0:00:05]} 30. Be3 {[%emt 0:05:30]} Nd5 {[%emt 0:00:10]} 31. Bb3 {
[%emt 0:03:56]} Nxe3 {[%emt 0:01:20]} 32. fxe3 {[%emt 0:00:05]} Qb4 {[%emt 0:
00:08]} 33. Qd3 {[%emt 0:06:15]} d5 {[%emt 0:00:45]} 34. Bc2 {[%emt 0:01:47]}
Re4 {[%emt 0:01:00]} 35. Qf1 {[%emt 0:00:30]} Rxd4 {[%emt 0:10:13]} 36. Qf5 {
[%emt 0:01:04]} Re4 {[%emt 0:00:05]} 37. Bxe4 {[%emt 0:00:07]} Qxe4 {[%emt 0:
00:34]} 38. Qxe4 {[%emt 0:00:45]} dxe4 {[%emt 0:00:07]} 39. Kf2 {[%emt 0:03:05]
} Rd2+ {[%emt 0:01:05]} 40. Kg3 {[%emt 0:00:00]} Bc7+ {[%emt 0:00:00]} 41. Kh3
{[%emt 0:11:41]} Be5 {[%emt 0:02:52]} 42. Rad1 {[%emt 0:02:35]} Rxb2 {[%emt 0:
02:30]} 43. Rb1 {[%emt 0:03:32]} Rb4 {[%emt 0:03:12]} 44. Kg4 {[%emt 0:01:17]}
Rxa4 {[%emt 0:08:40]} 45. Kf5 {[%emt 0:04:23]} Kh7 {[%emt 0:13:40]} 46. Rxb7 {
[%emt 0:00:18]} Ra2 {[%emt 0:05:51]} 47. g4 {[%emt 0:02:17]} Rf2+ {[%emt 0:01:
16]} 48. Kxe4 {[%emt 0:00:35]} Rg2 {[%emt 0:00:40]} 49. Kf5 {[%emt 0:02:04]}
Rf2+ {[%emt 0:00:08]} 50. Ke6 {[%emt 0:00:09]} Rg2 {[%emt 0:00:48]} 51. Kf5 {
[%emt 0:06:52]} Rf2+ {[%emt 0:00:05]} 52. Ke6 {[%emt 0:00:02]} Rg2 {[%emt 0:01:
38]} 53. Rd1 {[%emt 0:00:06]} Rxg4 {[%emt 0:00:08]} 54. Rd8 {[%emt 0:00:06]}
Rg3 {[%emt 0:00:43]} 55. e4 {[%emt 0:01:05]} Rg5 {[%emt 0:00:24]} 56. Kf7 {
[%emt 0:02:13]} Rxh5 {[%emt 0:00:25]} 57. Re7 {[%emt 0:00:21]} Kh6 {[%emt 0:01:
50]} 58. Rd1 {[%emt 0:00:35]} Rh3 {[%emt 0:00:55]} 59. Re8 {[%emt 0:00:32]} Kg5
{[%emt 0:00:24]} 60. Rf1 {[%emt 0:00:37]} Kg4 {[%emt 0:00:53]} 61. Kxg7 {
[%emt 0:00:18]} Rf3 {[%emt 0:00:06]} 62. Rc1 {[%emt 0:00:27]} a4 {[%emt 0:00:
38]} 63. Rxc6 {[%emt 0:00:37]} a3 {[%emt 0:00:05]} 64. Ra6 {[%emt 0:00:04]} Kf4
{[%emt 0:00:59]} 65. Rea8 {[%emt 0:01:03]} Bb2 {[%emt 0:00:05]} 66. Ra4 {
[%emt 0:00:35]} f5+ {[%emt 0:00:57]} 67. e5+ {[%emt 0:00:20]} Kxe5 {[%emt 0:00:
04]} 68. R8a5+ {[%emt 0:00:23]} Ke6+ {[%emt 0:00:05]} 69. Kg6 {[%emt 0:00:07]}
Rg3+ {[%emt 0:00:07]} 70. Kh5 {[%emt 0:00:13]} Rd3 {[%emt 0:00:20]} 71. Kg6 {
[%emt 0:00:35]} Rg3+ {[%emt 0:00:56]} 72. Kh5 {[%emt 0:00:04]} Rd3 {[%emt 0:02:
08]} 73. Kg6 {[%emt 0:00:05]} Rg3+ {[%emt 0:00:38]} 74. Kh5 {[%emt 0:00:05]}
Rd3 {[%emt 0:00:24]} 75. Kg6 {[%emt 0:00:05]} 1/2-1/2

[Event "Khanty-Mansiysk FIDE GP (Women)"]
[Site "Khanty-Mansiysk"]
[Date "2014.04.19"]
[Round "9"]
[White "Lagno, Kateryna"]
[Black "Muminova, Nafisa"]
[Result "1/2-1/2"]
[ECO "C65"]
[WhiteElo "2543"]
[BlackElo "2321"]
[Annotator "ChessBase Website"]
[PlyCount "97"]
[EventDate "2014.04.09"]
[EventType "tourn"]
[EventRounds "11"]
[EventCountry "RUS"]
[EventCategory "10"]
[SourceTitle "CBM 160"]
[Source "ChessBase"]
[SourceDate "2014.05.15"]
[SourceVersion "1"]
[SourceVersionDate "2014.05.15"]
[SourceQuality "1"]
[TimeControl "40/5400+30:1800+30"]
[WhiteClock "1:30:00"]
[BlackClock "1:30:00"]

1. e4 {[%emt 0:00:00]} e5 {[%emt 0:00:00]} 2. Nf3 {[%emt 0:00:00]} Nc6 {
[%emt 0:00:00]} 3. Bb5 {[%emt 0:00:14]} Nf6 {[%emt 0:00:00]} 4. O-O {[%emt 0:
02:18]} Bc5 {[%emt 0:00:26]} 5. Bxc6 {[%emt 0:17:46]} dxc6 {[%emt 0:04:11]} 6.
Nxe5 {[%emt 0:10:27]} Nxe4 {[%emt 0:04:38]} 7. Qe2 {[%emt 0:05:05]} Qd5 {
[%emt 0:03:05]} 8. Nd3 {[%emt 0:06:06]} O-O {[%emt 0:02:47]} 9. Nxc5 {[%emt 0:
00:31]} Nxc5 {[%emt 0:00:07]} 10. d3 {[%emt 0:03:06]} (10. Nc3 Qf5 11. d3 Bd7
12. Be3 Rfe8 {1/2-1/2 (12) Ankit,R (2350)-Greenfeld,A (2561) Mumbai 2010})
10... Bf5 {[%emt 0:01:39]} 11. Nc3 {[%emt 0:00:34]} Qd7 {[%emt 0:01:02]} 12.
Qe5 {[%emt 0:04:31]} b6 {[%emt 0:01:56]} 13. b4 $146 {[%emt 0:07:24]} (13. Be3
Rfe8 14. Qf4 Nb7 15. Ne4 Nd6 16. Nxd6 cxd6 17. Rfe1 d5 18. Bd2 Bg6 19. Rxe8+
Rxe8 20. Re1 h6 21. Rxe8+ Qxe8 22. Kf1 Qd7 23. Qb8+ Kh7 24. Bf4 c5 25. b3 c4
26. Qc7 Qxc7 27. Bxc7 cxd3 28. c3 b5 29. h4 f6 30. Ke1 Kg8 31. Kd2 h5 32. Bb8
a6 33. Ba7 Kf7 34. g3 Be4 35. f4 Ke6 36. Bf2 Kf5 37. b4 Kg4 38. Ke3 Kh3 39. Be1
Kg2 40. c4 dxc4 41. Bc3 Bf5 42. Be1 Kf1 {Armbrust,F (2300)-Misler,T (2235)
France 2007 0-1}) 13... Rae8 {[%emt 0:05:19]} 14. Qf4 {[%emt 0:00:22]} Nb7 {
[%emt 0:00:24]} 15. a4 {[%emt 0:01:37]} Nd6 {[%emt 0:04:55]} 16. Bb2 {[%emt 0:
06:11]} Re6 {[%emt 0:00:43]} 17. Nd1 {[%emt 0:01:30]} Rg6 {[%emt 0:06:50]} 18.
Ne3 {[%emt 0:00:10]} Be6 {[%emt 0:01:15]} 19. f3 {[%emt 0:12:18]} f6 {[%emt 0:
22:47]} 20. Rfe1 {[%emt 0:00:33]} Rg5 {[%emt 0:03:56]} 21. Re2 {[%emt 0:02:00]}
Nf5 {[%emt 0:05:55]} 22. Rae1 {[%emt 0:01:39]} Nxe3 {[%emt 0:01:10]} 23. Rxe3 {
[%emt 0:00:14]} Re8 {[%emt 0:00:23]} 24. Re4 {[%emt 0:03:59]} Rd5 {[%emt 0:04:
12]} 25. Qe3 $36 {[%emt 0:01:53][%csl Re6] At some point it seemed that surely
White's devasting pin on the e-file would reap a deadly reward, but somehow
Muminova's cool rook movements were sufficient to hold the game and it seemed
impossible for Lagno to find an entry point. After the queen's came off it was
obvious that the opposite colored bishops would lead this game to a draw.} Kf7
{[%emt 0:02:31]} 26. g4 {[%emt 0:02:20]} h5 {[%emt 0:08:06]} 27. h3 {[%emt 0:
00:43]} hxg4 {[%emt 0:00:07]} 28. fxg4 {[%emt 0:00:36]} Rg5 {[%emt 0:00:51]}
29. Kf2 {[%emt 0:04:50]} Qd6 {[%emt 0:04:31]} 30. Qg3 {[%emt 0:00:06]} Bd7 {
[%emt 0:01:23]} 31. Bc1 {[%emt 0:01:42]} Rxe4 {[%emt 0:02:13]} 32. Rxe4 {
[%emt 0:01:22]} Qxg3+ {[%emt 0:02:21]} 33. Kxg3 {[%emt 0:00:04]} Re5 {[%emt 0:
00:58]} 34. Bf4 {[%emt 0:00:29]} Rxe4 {[%emt 0:00:43]} 35. dxe4 {[%emt 0:00:03]
} a5 {[%emt 0:02:14]} 36. c3 {[%emt 0:01:12]} axb4 {[%emt 0:00:37]} 37. cxb4 {
[%emt 0:00:04]} c5 {[%emt 0:00:17]} 38. b5 {[%emt 0:02:09]} c6 {[%emt 0:00:07]}
39. Bc7 {[%emt 0:02:34]} cxb5 {[%emt 0:00:08]} 40. axb5 {[%emt 0:00:00]} Bxb5 {
[%emt 0:00:00]} 41. Bxb6 {[%emt 0:00:06]} Bd3 {[%emt 0:03:42]} 42. Bxc5 {
[%emt 0:01:52]} Bxe4 {[%emt 0:00:17]} 43. h4 {[%emt 0:00:04]} Bc2 {[%emt 0:00:
15]} 44. Bd4 {[%emt 0:00:05]} Bb1 {[%emt 0:00:32]} 45. Kf4 {[%emt 0:00:05]} Bc2
{[%emt 0:00:11]} 46. g5 {[%emt 0:00:05]} fxg5+ {[%emt 0:00:07]} 47. Kxg5 {
[%emt 0:00:03]} g6 {[%emt 0:00:07]} 48. h5 {[%emt 0:00:03]} gxh5 {[%emt 0:00:
04]} 49. Kxh5 {[%emt 0:00:02]} 1/2-1/2

[Event "Khanty-Mansiysk FIDE GP (Women)"]
[Site "Khanty-Mansiysk"]
[Date "2014.04.11"]
[Round "3"]
[White "Kosintseva, Tatiana"]
[Black "Batchimeg, Tuvshintugs"]
[Result "1/2-1/2"]
[ECO "C65"]
[WhiteElo "2496"]
[BlackElo "2340"]
[Annotator "ChessBase Website"]
[PlyCount "113"]
[EventDate "2014.04.09"]
[EventType "tourn"]
[EventRounds "11"]
[EventCountry "RUS"]
[EventCategory "10"]
[SourceTitle "CBM 160"]
[Source "ChessBase"]
[SourceDate "2014.05.15"]
[SourceVersion "1"]
[SourceVersionDate "2014.05.15"]
[SourceQuality "1"]
[TimeControl "40/5400+30:1800+30"]
[WhiteClock "1:30:00"]
[BlackClock "1:30:00"]

1. e4 {[%emt 0:00:00]} e5 {[%emt 0:00:00]} 2. Nf3 {[%emt 0:00:00]} Nc6 {
[%emt 0:00:00]} 3. Bb5 {[%emt 0:00:09]} Nf6 {[%emt 0:00:10]} 4. d3 {[%emt 0:03:
49]} Bc5 {[%emt 0:00:24]} 5. c3 {[%emt 0:00:09]} O-O {[%emt 0:00:15]} 6. O-O {
[%emt 0:00:06]} Re8 {[%emt 0:02:38]} 7. Bg5 {[%emt 0:02:12]} (7. Nbd2 a6 8.
Bxc6 dxc6 9. Nc4 Nd7 10. b4 Bd6 11. Qb3 Nf8 12. Bg5 Qd7 13. Be3 Ng6 14. Nfd2
Bf8 15. d4 Qe7 16. dxe5 Be6 17. Qc2 Bxc4 18. Nxc4 Nxe5 19. Nd2 a5 20. a3 axb4
21. axb4 Qe6 22. f3 Nc4 23. Bf4 c5 24. b5 Nd6 25. Rxa8 Rxa8 26. Rb1 b6 27. e5
Nc4 28. Qe4 Ra4 29. Rc1 h6 30. h4 Nb2 31. c4 Qd7 32. Rb1 Ra2 33. Be3 Na4 34.
Rb3 Rxd2 35. Bxd2 Qxd2 36. Rd3 Qc1+ {Karjakin,S (2766)-Aronian,L (2830)
Khanty-Mansiysk 2014 0-1}) 7... h6 {[%emt 0:05:18]} 8. Bh4 {[%emt 0:00:14]} a6
{[%emt 0:30:22]} 9. Bxc6 {[%emt 0:12:01]} dxc6 {[%emt 0:00:36]} 10. h3 $146 {
[%emt 0:02:29]} (10. d4 exd4 11. cxd4 Be7 12. Bxf6 Bxf6 13. Nc3 Bg4 14. e5 Bg5
15. Ne2 Bxf3 16. gxf3 Qd7 17. Kh1 Qh3 18. Qb3 Qf5 19. Rg1 c5 20. f4 Qe4+ 21. f3
Qxe2 22. fxg5 c4 23. Qc3 c5 24. dxc5 Qxe5 25. gxh6 {1/2-1/2 (25) Balogh,C 
(2575)-Ionov,S (2546) Moscow 2008}) 10... Bd6 {[%emt 0:13:52]} 11. Nbd2 {
[%emt 0:05:19]} c5 {[%emt 0:05:31]} 12. Re1 {[%emt 0:12:22]} g5 {[%emt 0:06:06]
Wihte's solid approach in the Spanish paid off as Black's position was riddled
with weaknesses, and the more the position opened up the more glaring it was
that Tuvshintugs was going to be unable to hold on to all her pawns. However
in time pressure Konsintseva was unable to accurately fend off her opponent's
threats, and she allowed too much counterplay. The Mongolian player exploited
this perfectly and she never let Kosintseva have the advantage again.} 13. Bg3
{[%emt 0:00:16]} Nh5 {[%emt 0:00:59]} 14. Nc4 {[%emt 0:18:44]} b5 {[%emt 0:05:
23]} 15. Ne3 $14 {[%emt 0:11:06][%cal Ge3d5,Ge3f5]} Nf4 {[%emt 0:00:28]} 16. a4
{[%emt 0:07:18]} Rb8 {[%emt 0:05:11]} 17. axb5 {[%emt 0:00:15]} axb5 {[%emt 0:
00:04]} 18. d4 {[%emt 0:02:53]} cxd4 {[%emt 0:09:50]} 19. cxd4 {[%emt 0:00:06]}
exd4 {[%emt 0:00:10]} 20. Nxd4 {[%emt 0:02:56]} Qf6 {[%emt 0:04:41]} 21. Nef5 {
[%emt 0:12:04]} Bxf5 {[%emt 0:00:38]} 22. Nxf5 {[%emt 0:00:04]} Bb4 {[%emt 0:
02:09]} 23. Re3 {[%emt 0:02:08]} Rbd8 {[%emt 0:01:05]} 24. Qb3 {[%emt 0:00:40]}
Bc5 {[%emt 0:03:10]} 25. Bxf4 {[%emt 0:03:19]} gxf4 {[%emt 0:00:15]} 26. Rc3 {
[%emt 0:01:11]} Bb6 {[%emt 0:02:05]} 27. Qc2 {[%emt 0:00:12]} Kh8 {[%emt 0:01:
16]} 28. Rf3 {[%emt 0:01:02]} Rg8 {[%emt 0:00:47]} 29. Rxf4 {[%emt 0:00:22]} h5
{[%emt 0:00:24]} 30. Rf3 {[%emt 0:00:54]} Qg5 {[%emt 0:00:26]} 31. Rg3 {
[%emt 0:00:31]} Qd2 {[%emt 0:00:11]} 32. Qc3+ {[%emt 0:00:34]} Qxc3 {[%emt 0:
00:08]} 33. bxc3 {[%emt 0:00:31]} Rxg3 {[%emt 0:00:22]} 34. Nxg3 {[%emt 0:00:
02]} Rd2 {[%emt 0:00:52]} 35. Nxh5 {[%emt 0:00:35]} Rc2 {[%emt 0:00:52]} 36.
Ra8+ {[%emt 0:00:34]} Kh7 {[%emt 0:00:03]} 37. Nf6+ {[%emt 0:00:27]} Kg6 {
[%emt 0:00:57]} 38. Nd5 {[%emt 0:00:20]} Bxf2+ {[%emt 0:00:17]} 39. Kf1 {
[%emt 0:00:57]} Bc5 {[%emt 0:00:36]} 40. Rg8+ {[%emt 0:00:00]} Kh7 {[%emt 0:00:
00]} 41. Nf6+ {[%emt 0:12:20]} Kh6 {[%emt 0:00:27]} 42. e5 {[%emt 0:00:38]}
Rc1+ {[%emt 0:15:20]} 43. Ke2 {[%emt 0:00:13]} Rxc3 {[%emt 0:00:17]} 44. Ng4+ {
[%emt 0:18:31]} Kh7 {[%emt 0:00:29]} 45. Nf6+ {[%emt 0:00:02]} Kh6 {[%emt 0:00:
05]} 46. g4 {[%emt 0:00:06]} Re3+ {[%emt 0:00:07]} 47. Kd1 {[%emt 0:01:48]}
Rxe5 {[%emt 0:00:09]} 48. h4 {[%emt 0:00:03]} Be3 {[%emt 0:00:08]} 49. Kc2 {
[%emt 0:01:17]} c5 {[%emt 0:00:55]} 50. g5+ {[%emt 0:00:24]} Bxg5 {[%emt 0:00:
08]} 51. hxg5+ {[%emt 0:00:38]} Rxg5 {[%emt 0:00:06]} 52. Rxg5 {[%emt 0:00:15]}
Kxg5 {[%emt 0:00:05]} 53. Ne4+ {[%emt 0:00:02]} Kg4 {[%emt 0:00:22]} 54. Nxc5 {
[%emt 0:00:04]} f5 {[%emt 0:00:09]} 55. Ne6 {[%emt 0:00:13]} f4 {[%emt 0:00:16]
} 56. Nxf4 {[%emt 0:00:09]} Kxf4 {[%emt 0:00:07]} 57. Kc3 {[%emt 0:00:01]}
1/2-1/2